Cogmind - Beta 12 @@@ ROGUE MODE // 2023.03.12 @ 14:14:08 Player: Infomantis Result: Destroyed by H-77 Assassin with High-powered Shotgun Performance ------------- Evolutions (6) 3000 Regions Visited (26) 5200 Robots Destroyed (294) 1470 Value Destroyed (13125) 13125 Prototype IDs (37) 740 Alien Tech Used (2) 400 Bonus (5169) 5169 TOTAL SCORE: 29104 Bonus ------- High Alert Combat Kills 1634 Follower Combat Kills 2318 Entered Garrisons 400 Network Hubs Disabled 200 Met Imprinter 300 Met Zhirov 300 Built Enhanced Grunts 300 A7 Reached Mainframe 300 Met R17 at Cetus 500 Friendly Fire -1083 Cogmind --------- Core Integrity 0/1150 Matter 300/300 Energy 94/100 System Corruption 9% Temperature Cool (0) Movement Walking (120) Location -4/Garrison Parts ------- > --- POWER (2) -------- (None) > --- PROPULSION (4) --- Flexi-carbon Leg Armored Leg Armored Leg Armored Leg > --- UTILITY (9) ------ Advanced Heat Sink Advanced Heat Sink Advanced Heat Sink Large Storage Unit Advanced Signal Interpreter Improved Target Analyzer Core Analyzer Graphene Brace > --- WEAPON (4) ------- Plasma Rifle Lance Lance > --- INVENTORY (15) --- Flexi-carbon Leg Armored Leg Improved Heat Sink Improved Energy Well (400) Matter Compressor (250) Advanced Transmission Jammer Improved Force Field Advanced Variable Charge Gun Railgun Peak State ------------ > --- POWER ------------ Heavy Antimatter Reactor Quantum Reactor > --- PROPULSION ------- Centrium Heavy Treads Centrium Heavy Treads > --- UTILITY ---------- Improved Cooling System Large Storage Unit Core Analyzer Precision Energy Filter Transmission Jammer Centrium Medium Armor Plating Improved Force Field > --- WEAPON ----------- Advanced Variable Charge Gun Advanced Variable Charge Gun Advanced Variable Charge Gun Advanced KE Penetrator > --- INVENTORY -------- Neutrino Core Centrium Heavy Treads Improved Energy Well Matter Compressor Advanced Terrain Scanner Transmission Jammer Hardened Medium Armor Plating Centrium Medium Armor Plating Improved Hacking Suite Improved Hacking Suite Advanced System Shield Advanced System Restoration Module Transdimensional Reconstructor Precision Grenade Launcher [Rating: 130] Favorites ----------- Power Reinforced Deuterium Engine Engine Reinforced Deuterium Engine Power Core Neutrino Core Reactor Quantum Reactor Propulsion Light Treads Treads Light Treads Leg Myomer Leg Wheel Wheel Utility Large Storage Unit Device Advanced Heat Sink Storage Large Storage Unit Processor Core Analyzer Hackware Improved Hacking Suite Protection Centrium Medium Armor Plating Weapon Advanced Variable Charge Gun Energy Gun Advanced Variable Charge Gun Energy Cannon Heavy Ion Cannon Ballistic Gun Advanced KE Penetrator Ballistic Cannon Improved Light Cannon Launcher Heavy Rocket Launcher Impact Weapon Makeshift Hammer Slashing Weapon Scythe Piercing Weapon Lance Build | -11 -10 -10 -9 -9 -9 -8 -8 -7 -7 -7 -7 -6 -6 -6 -6 -6 -6 -5 -5 -5 -5 -4 -4 -4 -4 -4 ------- Run | Jun Mat Min Mat Min Exi Min Mat Fac Low Low Zio Pro Fac Ext Cet Arc Hub Fac Upp Upp Zhi Pro Fac Gar Fac Gar Slots Evolved 12 | . . . 2 . . . 2 2 . . . . 2 . . . . 2 . . . . 2 . . . Power 1 | . . . . . . . . . . . . . . . . . . 1 . . . . . . . . Propulsion 2 | . . . . . . . 1 1 . . . . . . . . . . . . . . . . . . Utility 7 | . . . 1 . . . 1 1 . . . . 1 . . . . 1 . . . . 2 . . . Weapon 2 | . . . 1 . . . . . . . . . 1 . . . . . . . . . . . . . Parts Attached 358 | 8 18 7 31 4 4 3 24 37 10 2 15 . 17 36 14 5 2 4 2 2 8 7 20 20 46 12 Power 36 | 1 4 1 4 . . . 2 2 2 . 2 . 1 1 1 1 . 1 . . 2 . 3 1 6 1 Engine 20 | 1 3 1 3 . . . 1 2 2 . 2 . 1 1 . . . 1 . . 1 . 1 . . . Core 10 | . 1 . 1 . . . 1 . . . . . . . . . . . . . . . 2 1 4 . Reactor 6 | . . . . . . . . . . . . . . . 1 1 . . . . 1 . . . 2 1 Propulsion 81 | 2 6 2 4 2 . 2 8 12 1 2 1 . 5 6 3 . . 1 . . . 2 3 2 12 5 Treads 39 | . . . 4 2 . 2 7 9 1 . 1 . 2 3 3 . . 1 . . . 1 . 2 1 . Leg 32 | 2 6 2 . . . . . . . . . . 1 1 . . . . . . . 1 3 . 11 5 Wheel 10 | . . . . . . . 1 3 . 2 . . 2 2 . . . . . . . . . . . . Hover . | . . . . . . . . . . . . . . . . . . . . . . . . . . . Flight . | . . . . . . . . . . . . . . . . . . . . . . . . . . . Utility 114 | 2 3 . 8 . 1 . 4 15 2 . 3 . 5 11 4 4 2 1 2 2 6 3 10 8 15 3 Device 55 | 1 1 . 4 . . . 1 8 2 . 2 . 4 4 2 1 2 . 1 2 2 2 3 4 6 3 Storage 9 | 1 2 . 1 . 1 . . . . . . . . 2 . . . . . . . . 2 . . . Processor 10 | . . . 2 . . . . 1 . . . . . 1 . . . 1 . . . . 2 . 3 . Hackware 4 | . . . . . . . . . . . . . . . . 1 . . . . . . 1 . 2 . Protection 36 | . . . 1 . . . 3 6 . . 1 . 1 4 2 2 . . 1 . 4 1 2 4 4 . Artifact . | . . . . . . . . . . . . . . . . . . . . . . . . . . . Weapon 127 | 3 5 4 15 2 3 1 10 8 5 . 9 . 6 18 6 . . 1 . . . 2 4 9 13 3 Energy Gun 42 | 1 . 3 3 . . . 2 2 1 . . . 2 6 5 . . 1 . . . 1 2 6 6 1 Energy Cannon 6 | . . . . . . . . . 1 . 2 . . 2 . . . . . . . . 1 . . . Ballistic Gun 29 | 2 2 . 3 . . . 6 4 . . 1 . 1 4 1 . . . . . . . 1 . 4 . Ballistic Cannon 22 | . . . 8 1 3 1 . . 1 . 1 . . 3 . . . . . . . . . 3 1 . Launcher 21 | . 3 1 1 1 . . 2 2 2 . 2 . 1 3 . . . . . . . 1 . . 2 . Special Weapon . | . . . . . . . . . . . . . . . . . . . . . . . . . . . Impact Weapon 1 | . . . . . . . . . . . . . 1 . . . . . . . . . . . . . Slashing Weapon 4 | . . . . . . . . . . . 3 . 1 . . . . . . . . . . . . . Piercing Weapon 2 | . . . . . . . . . . . . . . . . . . . . . . . . . . 2 Special Melee Weapon . | . . . . . . . . . . . . . . . . . . . . . . . . . . . Unidentified Prototypes 17 | . . . 3 . . . 2 1 . . 1 . . 2 4 . . . . 1 3 . . . . . Parts Lost 83 | . . 3 4 2 . . 4 14 4 1 . . 3 2 1 . . . . . . 4 4 5 30 2 Power 11 | . . 1 1 . . . 1 1 . . . . . . . . . . . . . . 1 . 5 1 Propulsion 21 | . . . . 2 . . 2 4 2 1 . . 2 1 . . . . . . . 1 . 1 4 1 Utility 29 | . . 1 1 . . . 1 6 . . . . . 1 1 . . . . . . 3 3 . 12 . Weapon 22 | . . 1 2 . . . . 3 2 . . . 1 . . . . . . . . . . 4 9 . Highest Loss Streak 13 | . . 1 3 2 . . 3 10 3 1 . . 2 1 1 . . . . . . 2 3 3 13 1 To Critical Strikes . | . . . . . . . . . . . . . . . . . . . . . . . . . . . Average Slot Usage (%) 91 | . 100 93 97 99 68 100 98 93 87 92 97 100 96 91 83 85 86 85 88 88 87 83 90 90 92 74 Engine 5 | . 12 10 8 11 11 11 4 7 6 7 7 7 6 6 4 . . 5 5 5 5 5 2 . . . Core 1 | . 1 3 2 . . . 4 . . . . . . . . . . . . . . . 2 6 6 . Reactor 1 | . . . . . . . . . . . . . . . 1 6 6 5 5 5 5 5 5 3 3 5 Treads 13 | . . . 22 21 22 22 26 26 7 13 13 15 12 11 16 13 13 11 11 11 11 10 4 7 3 . Leg 4 | . 28 28 . . . . . . . . . . . 5 . . . . . . . . 11 4 13 20 Wheel 3 | . . . . . . . . 2 20 8 15 15 11 6 1 . . . . . . . . . . . Device 12 | . 14 8 8 . . . 5 7 19 23 16 15 17 11 12 13 13 11 16 18 20 12 14 15 12 15 Storage 7 | . 14 14 11 11 11 11 9 7 7 7 7 7 6 9 6 6 6 5 5 5 5 5 6 9 5 5 Processor 9 | . . . 11 22 22 22 12 6 7 7 7 7 6 6 13 13 13 16 5 5 5 5 8 10 11 15 Hackware 1 | . . . . . . . . . . . . . . . . . . . . . . . 3 5 9 . Protection 5 | . . . . . . . 8 9 . . 6 7 6 6 6 5 6 5 10 9 7 10 8 4 5 . Energy Gun 8 | . . 18 7 . . . 8 5 . . . . 4 6 13 20 20 15 17 17 17 16 9 13 11 2 Energy Cannon 1 | . . . . . . . . . 1 7 6 7 6 4 . . . . . . . . 1 . . . Ballistic Gun 6 | . 26 4 4 . . . 16 15 9 7 . . . 7 4 6 6 5 5 5 5 5 8 1 5 . Ballistic Cannon 4 | . . . 19 32 2 33 2 . . 7 6 7 6 4 . . . . . . . . . 4 2 . Naked Turns . | . . . . . . . . . . . . . . . . . . . . . . . . . . . Heaviest Build 104 | 13 21 21 40 40 40 40 46 76 52 52 61 61 72 75 70 70 72 87 95 103 103 102 104 91 87 49 Greatest Support 160 | 20 20 20 40 40 40 40 63 88 36 20 20 20 20 60 160 160 160 160 160 160 160 160 90 150 150 68 Greatest Overweight (x) 6 | . 1 1 . . . . 4 4 5 5 3 3 6 6 2 . . . . . . 1 1 1 1 1 Average Overweight (x) . | . . . . . . . . . 1 4 2 3 3 4 . . . . . . . . . . . . Largest Inventory Capacity 15 | 8 10 10 15 15 15 15 15 15 15 15 15 15 15 15 15 15 15 15 15 15 15 15 15 15 15 15 Average Capacity 14 | 7 9 10 11 15 15 15 15 15 15 15 15 15 15 15 15 15 15 15 15 15 15 15 15 15 15 15 Most Carried 15 | 8 10 10 15 15 15 15 15 15 15 15 15 15 15 15 15 15 15 15 15 15 15 15 15 15 15 14 Average Carried 13 | 5 9 9 10 14 15 15 14 14 12 14 14 15 14 14 14 14 15 13 14 15 14 14 14 14 14 8 Final Capacity 15 | 8 10 10 15 15 15 15 15 15 15 15 15 15 15 15 15 15 15 15 15 15 15 15 15 15 15 15 Final Carried 15 | 8 9 10 15 15 15 15 15 13 14 15 15 15 15 15 15 15 15 15 15 15 15 15 14 15 15 9 Class Distribution -------------------- 43% | Scavenger-Gunner 20% | Scavenger-Mutant 17% | Scavenger-Tank 9% | Gunner 6% | Mutant Dominant Class ---------------- Mutant | -10/Materials Scavenger-Mutant | -10/Mines Gunner | -9/Materials Gunner | -9/Mines Mutant | -9/Exiles Gunner | -8/Mines Scavenger-Gunner | -8/Materials Scavenger-Gunner | -7/Factory Scavenger-Mutant | -7/Lower Caves Scavenger-Gunner | -7/Lower Caves Scavenger-Mutant | -7/Zion Scavenger-Mutant | -6/Proximity Caves Scavenger-Gunner | -6/Factory Scavenger-Gunner | -6/Extension Scavenger-Gunner | -6/Cetus Scavenger-Gunner | -6/Archives Scavenger-Gunner | -6/Hub_04(d) Scavenger-Gunner | -5/Factory Scavenger-Tank | -5/Upper Caves Scavenger-Tank | -5/Upper Caves Scavenger-Tank | -5/Zhirov Scavenger-Tank | -4/Proximity Caves Scavenger-Gunner | -4/Factory Scavenger-Gunner | -4/Garrison Scavenger-Gunner | -4/Factory Scavenger-Mutant | -4/Garrison Resources | -11 -10 -10 -9 -9 -9 -8 -8 -7 -7 -7 -7 -6 -6 -6 -6 -6 -6 -5 -5 -5 -5 -4 -4 -4 -4 -4 ----------- Run | Jun Mat Min Mat Min Exi Min Mat Fac Low Low Zio Pro Fac Ext Cet Arc Hub Fac Upp Upp Zhi Pro Fac Gar Fac Gar Matter Collected 8555 | 364 396 225 482 201 . 91 639 1143 199 115 90 87 306 908 263 154 76 28 104 100 98 261 316 562 1224 123 Remotely . | . . . . . . . . . . . . . . . . . . . . . . . . . . . Salvage Created 13468 | 160 405 317 574 124 . . 835 1786 129 40 . 41 346 1052 184 322 612 37 318 718 268 1118 530 1126 2281 145 Parts 630 | 14 37 11 42 2 . . 45 108 7 5 . . 16 47 6 30 32 3 9 25 6 42 14 35 85 9 Haulers Intercepted 7 | . 1 . 3 . . . 2 . . . . . . . . . . . . 1 . . . . . . Recyclers Shooed 7 | . . 1 . . . . . 1 . . . . . 1 . . . . . . . . . . 4 . Parts Field Recycled . | . . . . . . . . . . . . . . . . . . . . . . . . . . . Retrieved Matter . | . . . . . . . . . . . . . . . . . . . . . . . . . . . Parts Self-Destructed 97 | . . . . . . . . . 5 5 . . . . . . . . 14 29 5 39 . . . . Prevented . | . . . . . . . . . . . . . . . . . . . . . . . . . . . Kills | -11 -10 -10 -9 -9 -9 -8 -8 -7 -7 -7 -7 -6 -6 -6 -6 -6 -6 -5 -5 -5 -5 -4 -4 -4 -4 -4 ------- Run | Jun Mat Min Mat Min Exi Min Mat Fac Low Low Zio Pro Fac Ext Cet Arc Hub Fac Upp Upp Zhi Pro Fac Gar Fac Gar Combat Hostiles Destroyed 229 | . 10 6 11 11 . . 18 29 4 1 . 2 11 16 2 . 7 . 4 11 . 20 8 20 36 2 Melee 2 | . . . . . . . . . . . . . . . . . . . . . . . . . . 2 Guns 152 | . 8 3 3 . . . 17 21 1 1 . . 2 4 2 . 7 . 4 11 . 19 8 12 29 . Cannons 32 | . . . 5 2 . . 1 . 2 . . 2 5 1 . . . . . . . . . 7 7 . AOE 41 | . 2 3 3 9 . . . 8 1 . . . 4 10 . . . . . . . 1 . . . . Classes Destroyed 24 | 2 4 1 2 2 . . 3 4 . . . . . 1 . 1 1 1 1 . . 1 . . . . Worker 17 | . . 1 . . . . 1 10 . . . . . 1 . . 1 . . . . . . . 3 . Builder 9 | . . . . . . . . 8 . . . . . 1 . . . . . . . . . . . . Tunneler 7 | 4 1 1 . . . . . . . . . . . . . . 1 . . . . . . . . . Hauler 7 | . 1 . 3 . . . 2 . . . . . . . . . . . . 1 . . . . . . Recycler 13 | 1 . 1 1 1 . . . 3 . . . . . 3 . . 1 . . . . . . . 2 . Minesweeper 1 | . . . . . . . . . . . . . . . . . . . 1 . . . . . . . Mechanic 2 | . . . . . . . . . . . . . . . . . . 1 . . . . . . 1 . Operator 10 | . . . . . . . . . . . . . . . . 9 1 . . . . . . . . . Drone 2 | . . . . . . . . . . . . . . . . . . . . . . 2 . . . . Watcher 6 | . 2 . 2 . . . . . . . . . . 1 . . . . . . . . . . 1 . Swarmer 40 | . 3 . 3 . . . 4 . 2 . . . 3 6 . . 1 . . 3 . 3 . 3 9 . Saboteur 1 | . . . . . . . . . . . . . . . . . 1 . . . . . . . . . Grunt 88 | . 7 6 3 . . . 6 9 . . . . 5 4 . . 1 . 1 6 . 13 4 12 10 1 Brawler 6 | . . . 1 . . . 1 1 . . . . . . . . . . 1 . . . . . 2 . Duelist 8 | . . . . . . . . 1 . . . . 1 1 . . . . 1 1 . 1 . 1 1 . Protector 2 | . . . . . . . . 1 . . . . . . . . . . . . . . . . 1 . Sentry 28 | . . . 4 . . . 3 5 1 . . 1 . 2 . . 2 . 1 1 . . . 3 5 . Demolisher 2 | . . . . 2 . . . . . . . . . . . . . . . . . . . . . . Specialist 5 | . . . . . . . 2 3 . . . . . . . . . . . . . . . . . . Hunter 13 | . . . . . . . 1 2 . . . 1 2 1 . . . . . . . 1 2 . 2 1 Programmer 17 | . . . . . . . . 7 1 1 . . . . . . . . . . . . 2 . 6 . Heavy 2 | . . . . . . . 1 . . . . . . . . . 1 . . . . . . . . . Behemoth 4 | . . . . . . . . . . . . . . 2 . . 1 . . . . . . 1 . . Cetus Guard 2 | . . . . . . . . . . . . . . . 2 . . . . . . . . . . . Enhanced Grunt 1 | . . . . . . . . . . . . . . . . . 1 . . . . . . . . . Assembled 9 | . . . . 9 . . . . . . . . . . . . . . . . . . . . . . Thug 1 | . . . . . . . . . . . . . . . 1 . . . . . . . . . . . Best Kill Streak 19 | 3 3 5 4 9 . . 4 19 3 1 . 1 6 4 2 2 3 1 2 11 . 4 4 4 6 1 Combat Bots Only 12 | . 3 2 4 9 . . 4 12 3 1 . 1 6 4 2 . 3 . 2 11 . 4 4 4 6 1 Max Kills in Single Turn 4 | 2 2 2 2 3 . . 1 3 1 1 . 1 2 3 2 1 4 1 1 2 . 1 1 1 3 1 Gunslinging 1 | . . . . . . . . 1 . . . . . . . . . . . 1 . . . . 1 . Exploded 3 | . 2 1 2 3 . . . 2 1 . . . 2 3 . . . . . . . 1 . . . . Melee 1 | . . . . . . . . . . . . . . . . . . . . . . . . . . 1 Uniques/NPCs Destroyed . | . . . . . . . . . . . . . . . . . . . . . . . . . . . Combat | -11 -10 -10 -9 -9 -9 -8 -8 -7 -7 -7 -7 -6 -6 -6 -6 -6 -6 -5 -5 -5 -5 -4 -4 -4 -4 -4 -------- Run | Jun Mat Min Mat Min Exi Min Mat Fac Low Low Zio Pro Fac Ext Cet Arc Hub Fac Upp Upp Zhi Pro Fac Gar Fac Gar Damage Taken 23343 | . 530 386 512 779 . 34 1200 2967 421 70 . 435 908 1814 170 147 742 317 200 862 . 1853 1307 1594 5451 644 Core 2481 | . 91 77 50 50 . . 118 190 54 . . 32 183 225 27 23 54 36 . 36 . 110 115 194 680 136 Absorbed by Shields 977 | . . . . . . . . . . . . . 47 257 35 . . . . . . 457 . . 181 . Reduced by Siege Mode 31 | . . . . . . . . . . . . . . . . . . . . 31 . . . . . . Redirected to Shielding 207 | . . . . . . . . . . . . . . . . . . . . . . 155 . . 52 . Regen/Repaired (Parts) 1425 | . . . . . . . . . . . 613 . . . . . . 442 . . . . 370 . . . Core Remaining (%) 66 | 100 . 32 . . . 75 78 . . . . 60 . . . . 39 . . . . 81 . . . . Volleys Fired 659 | 14 47 21 31 13 . 2 52 78 18 5 . 15 20 37 7 26 15 4 13 20 2 42 19 62 96 . Largest 4 | 2 2 2 3 3 . 3 3 3 2 3 . 2 3 4 3 4 4 4 4 4 4 4 4 4 4 . Hottest 308 | 40 40 105 144 117 . 117 117 108 93 141 . 113 182 250 250 275 275 275 275 275 275 275 275 308 304 . Shots Fired 1846 | 28 91 31 69 25 . 6 151 216 29 15 . 27 43 81 15 98 60 16 46 80 8 122 66 202 321 . Gun 1524 | 28 88 25 33 . . . 128 209 23 5 . . 8 49 15 98 60 16 46 80 8 118 64 149 274 . Cannon 273 | . . . 33 20 . 6 21 . 4 10 . 24 30 24 . . . . . . . . 2 53 46 . Launcher 49 | . 3 6 3 5 . . 2 7 2 . . 3 5 8 . . . . . . . 4 . . 1 . Special . | . . . . . . . . . . . . . . . . . . . . . . . . . . . Kinetic 909 | 28 88 5 42 20 . 6 107 168 23 10 . 12 15 33 4 26 15 4 13 20 2 38 34 71 125 . Thermal 888 | . . 20 24 . . . 42 41 4 5 . 12 23 40 11 72 45 12 33 60 6 80 32 131 195 . Explosive 49 | . 3 6 3 5 . . 2 7 2 . . 3 5 8 . . . . . . . 4 . . 1 . Electromagnetic . | . . . . . . . . . . . . . . . . . . . . . . . . . . . Robot Hit Streak 38 | 4 8 8 11 9 . 5 28 16 5 1 . 6 4 8 6 6 5 1 8 19 4 38 12 35 22 . Robot Miss Streak 16 | 3 3 3 2 4 . 1 3 6 5 5 . 2 3 16 5 5 6 2 2 4 . 3 2 6 4 . Penetration Max 1 | . . . . . . . . 1 . . . . . 1 1 . 1 . . 1 . . . . 1 . Secondary Targets 25 | . . . . . . . 6 3 . . . . . . . . 1 . 1 3 . 3 4 1 3 . Max Gunslinging Chain 1 | . . . . . . . 1 1 . . . . . . . . 1 . 1 1 . 1 1 1 1 . Shots Hit Robots 1174 | 14 56 19 46 15 . 5 107 150 14 4 . 18 20 48 10 52 30 1 30 51 3 82 46 129 218 6 Core Hits 659 | 6 22 18 19 33 . . 37 92 9 1 . 7 21 66 11 23 21 1 11 24 3 50 19 55 107 3 Critical Kills 14 | . . . . . . . . 2 . . . . . . 1 1 1 . . . . 1 1 3 4 . Critical Parts Destroyed 21 | 2 1 . . . . . 1 . 1 . . . . . . 2 . . 1 1 . 4 4 2 2 . Critical Strikes 66 | 2 1 . 1 . . . 2 2 1 . . 1 . 1 1 3 1 . 1 2 . 5 5 14 21 2 Burn 19 | . . . . . . . 1 . . . . . . . . . . . . . . . . 7 11 . Destroy 37 | 2 1 . . . . . 1 2 1 . . . . . 1 3 1 . 1 2 . 5 5 5 7 . Blast 8 | . . . 1 . . . . . . . . 1 . 1 . . . . . . . . . 2 3 . Impale 2 | . . . . . . . . . . . . . . . . . . . . . . . . . . 2 Melee Attacks 10 | . . . . . . . . . . . 1 . 2 . . . . . . . . . . . . 7 Impact . | . . . . . . . . . . . . . . . . . . . . . . . . . . . Slashing 3 | . . . . . . . . . . . 1 . 2 . . . . . . . . . . . . . Piercing 7 | . . . . . . . . . . . . . . . . . . . . . . . . . . 7 Sneak Attacks . | . . . . . . . . . . . . . . . . . . . . . . . . . . . Combat Hostiles . | . . . . . . . . . . . . . . . . . . . . . . . . . . . Follow-up Attacks . | . . . . . . . . . . . . . . . . . . . . . . . . . . . Damage Inflicted 35671 | 192 801 609 979 876 . 81 2075 4323 449 112 . 451 1226 3574 556 1546 1435 25 835 1621 178 2629 1324 3407 6166 201 Guns 25189 | 192 721 229 337 . . . 1815 3288 260 54 . . 110 1693 556 1537 1084 25 835 1621 178 2315 1253 2311 4775 . Cannons 4690 | . . . 440 288 . 81 260 . 80 58 . 387 347 372 . . . . . . . . 71 1096 1210 . Explosions 5385 | . 80 366 198 583 . . . 953 109 . . 64 769 1509 . . 345 . . . . 314 . . 95 . Melee 201 | . . . . . . . . . . . . . . . . . . . . . . . . . . 201 Ramming 206 | . . 14 4 5 . . . 82 . . . . . . . 9 6 . . . . . . . 86 . Kinetic 13326 | 192 721 55 520 288 . 81 1429 2663 260 112 . 225 159 383 156 384 267 . 128 403 37 631 534 1297 2401 . Thermal 16596 | . . 174 257 . . . 646 625 80 . . 162 341 1682 400 1153 817 25 707 1218 141 1684 790 2110 3584 . Explosive 4902 | . 80 366 198 583 . . . 953 109 . . 64 726 1509 . . . . . . . 314 . . . . Electromagnetic 440 | . . . . . . . . . . . . . . . . . 345 . . . . . . . 95 . Impact . | . . . . . . . . . . . . . . . . . . . . . . . . . . . Slashing . | . . . . . . . . . . . . . . . . . . . . . . . . . . . Piercing 201 | . . . . . . . . . . . . . . . . . . . . . . . . . . 201 Highest Corruption 13 | . . . 2 2 2 2 . 7 8 8 8 . . . 1 1 2 . . . . . . . 13 9 Average Corruption 4 | . . . 2 2 2 2 . 4 7 8 8 . . . 1 1 2 . . . . . . . 7 9 Corruption Purged 16 | . . . . . . . . 5 . . . . . . . 1 . . . . . . . . 10 . Corruption Blocked . | . . . . . . . . . . . . . . . . . . . . . . . . . . . Effects 114 | . . . 3 15 7 5 . 7 13 17 . . . . 1 . . . . . . . . . 42 4 Message Errors 26 | . . . . 4 2 2 . 1 2 2 . . . . . . . . . . . . . . 13 . Matter Fused 34 | . . . 1 6 1 2 . 2 4 9 . . . . . . . . . . . . . . 8 1 Heat Flow Errors 13 | . . . 1 . 1 . . 2 3 . . . . . . . . . . . . . . . 6 . Energy Discharges 16 | . . . . 3 1 1 . . 2 1 . . . . . . . . . . . . . . 5 3 Data Loss (minor) 9 | . . . . 1 1 . . . 2 2 . . . . 1 . . . . . . . . . 2 . Data Loss (major) 5 | . . . 1 . 1 . . . . 3 . . . . . . . . . . . . . . . . Misfires 3 | . . . . . . . . 1 . . . . . . . . . . . . . . . . 2 . Alerts 1 | . . . . . . . . . . . . . . . . . . . . . . . . . 1 . Weapon Failures 7 | . . . . 1 . . . 1 . . . . . . . . . . . . . . . . 5 . Overload Shots 1 | . . . . . . . . . . . . . . . 1 . . . . . . . . . . . Overflow Damage 113 | . . 26 . . . . . 30 7 3 . . 27 12 . . 7 . . . . . . 1 . . Projectiles 4 | . . . . . . . . . . 3 . . . . . . . . . . . . . 1 . . Explosions 109 | . . 26 . . . . . 30 7 . . . 27 12 . . 7 . . . . . . . . . Melee . | . . . . . . . . . . . . . . . . . . . . . . . . . . . Knockbacks 36 | . . . . 5 . 3 1 . . . . 4 1 1 . . . . . . . . . 10 11 . Impact 3 | . . . . . . . . . . . . . . . . . . . . . . . . . 3 . Kinetic 33 | . . . . 5 . 3 1 . . . . 4 1 1 . . . . . . . . . 10 8 . Secondary . | . . . . . . . . . . . . . . . . . . . . . . . . . . . Self-Inflicted Damage 721 | . . 34 22 115 . . . 173 . . . . 227 . . . 104 . . . . . . . 46 . Shots 18 | . . 1 1 4 . . . 4 . . . . 5 . . . 1 . . . . . . . 2 . Rammed 10 | . . . . 1 . . . 5 . . . . . . . 2 1 . . . . . . . 1 . Targets Rammed 27 | . . 4 1 1 . . . 6 . . . . . . . 2 1 . . . . . . . 12 . Kicked 15 | . . 4 . . . . . . . . . . . . . . . . . . . . . . 11 . Crushed 2 | . . . 1 . . . . 1 . . . . . . . . . . . . . . . . . . Highest Temperature 419 | . 2 345 261 189 101 60 268 419 140 54 . 20 18 276 124 168 132 57 238 269 75 320 243 244 216 . Average Temperature 78 | . 1 136 85 72 57 32 84 62 54 22 . 12 7 104 26 54 50 38 83 118 39 95 118 62 49 . Received Heat Transfer 4105 | . 210 207 156 . . . 288 579 78 . . 48 101 386 13 21 75 144 36 246 . 488 252 316 440 21 Effects 5 | . . 1 . . . . 1 . . . . . . . . . . . . . . 3 . . . . Energy Bleed 1 | . . . . . . . . . . . . . . . . . . . . . . 1 . . . . Interference 3 | . . . . . . . 1 . . . . . . . . . . . . . . 2 . . . . Damage (minor) 1 | . . 1 . . . . . . . . . . . . . . . . . . . . . . . . Siege Activations 1 | . . . . . . . . . . . . . . . . . . . . 1 . . . . . . Total Turns 30 | . . . . . . . . . . . . . . . . . . . . 30 . . . . . . Longest Duration 30 | . . . . . . . . . . . . . . . . . . . . 30 . . . . . . Robots Corrupted . | . . . . . . . . . . . . . . . . . . . . . . . . . . . Combat Hostiles . | . . . . . . . . . . . . . . . . . . . . . . . . . . . Parts Fried 2 | . . . . . . . . . . . . . . . . . 2 . . . . . . . . . Impact Corruptions . | . . . . . . . . . . . . . . . . . . . . . . . . . . . Robots Melted 2 | . . . . . . . . . . . . . . 1 . . . . . . . . . 1 . . Combat Hostiles 2 | . . . . . . . . . . . . . . 1 . . . . . . . . . 1 . . Parts Melted 49 | . . 3 1 . . . 3 . . . . . 1 9 . . 1 . 1 1 . 2 3 11 13 . Heat Transferred 27490 | . . 397 631 . . . 1332 1090 111 . . 222 531 2522 547 1480 1036 37 925 1517 148 2183 975 4558 7248 . Parts Sabotaged . | . . . . . . . . . . . . . . . . . . . . . . . . . . . Parts Stolen 2 | . . . . . . . . . 2 . . . . . . . . . . . . . . . . . Parts Stripped . | . . . . . . . . . . . . . . . . . . . . . . . . . . . Power Chain Reactions . | . . . . . . . . . . . . . . . . . . . . . . . . . . . Missiles Intercepted . | . . . . . . . . . . . . . . . . . . . . . . . . . . . Alert | -11 -10 -10 -9 -9 -9 -8 -8 -7 -7 -7 -7 -6 -6 -6 -6 -6 -6 -5 -5 -5 -5 -4 -4 -4 -4 -4 ------- Run | Jun Mat Min Mat Min Exi Min Mat Fac Low Low Zio Pro Fac Ext Cet Arc Hub Fac Upp Upp Zhi Pro Fac Gar Fac Gar Peak Influence 1415 | 25 297 328 267 102 . 34 267 676 . . . . 226 511 993 768 1415 747 . . . . 498 1011 877 569 Initial 693 | . 16 115 49 45 . . 13 103 . . . . . 110 238 397 198 693 . . . . 391 252 530 529 Average 320 | 13 130 162 156 52 . 2 119 147 . . . . 103 167 552 649 690 709 . . . . 357 667 705 536 Maximum Alert Level 4 | . 1 1 1 . . . 1 2 . . . . 1 2 3 3 4 3 . . . . 2 3 3 2 Low Security (%) 50 | 100 75 85 72 100 . 100 78 84 . . . . 79 73 . . 2 . . . . . . . . . Level 1 14 | . 24 14 27 . . . 21 2 . . . . 20 10 27 . 16 . . . . . 77 20 . . Level 2 17 | . . . . . . . . 13 . . . . . 15 59 61 26 8 . . . . 22 33 39 100 Level 3 16 | . . . . . . . . . . . . . . . 12 37 48 91 . . . . . 46 60 . Level 4 . | . . . . . . . . . . . . . . . . . 6 . . . . . . . . . Level 5 . | . . . . . . . . . . . . . . . . . . . . . . . . . . . High Security . | . . . . . . . . . . . . . . . . . . . . . . . . . . . Max Security . | . . . . . . . . . . . . . . . . . . . . . . . . . . . Squads Dispatched 32 | . 1 . . . . . 2 6 . . . . 4 1 . . 6 2 . 1 . . 1 . 8 . Investigation 5 | . 1 . . . . . . 1 . . . . 2 1 . . . . . . . . . . . . Extermination 9 | . . . . . . . . 4 . . . . 1 . . . 1 . . . . . 1 . 2 . Reinforcement 10 | . . . . . . . 2 1 . . . . 1 . . . 4 . . . . . . . 2 . Assault 5 | . . . . . . . . . . . . . . . . . 1 2 . 1 . . . . 1 . Garrison 3 | . . . . . . . . . . . . . . . . . . . . . . . . . 3 . Intercept . | . . . . . . . . . . . . . . . . . . . . . . . . . . . Searches Triggered 1 | . . . . . . . . . . . . . . . . . . . . . . . 1 . . . Construction Impeded 1 | . . . . . . . . . . . . . . . . . . . . . . . . . 1 . Haulers Reinforced . | . . . . . . . . . . . . . . . . . . . . . . . . . . . Active Scanning Responses . | . . . . . . . . . . . . . . . . . . . . . . . . . . . Cargo Convoy Interrupts 2 | . . . . . . . . 1 . . . . . . . . . . . . . . . . 1 . Stealth | -11 -10 -10 -9 -9 -9 -8 -8 -7 -7 -7 -7 -6 -6 -6 -6 -6 -6 -5 -5 -5 -5 -4 -4 -4 -4 -4 --------- Run | Jun Mat Min Mat Min Exi Min Mat Fac Low Low Zio Pro Fac Ext Cet Arc Hub Fac Upp Upp Zhi Pro Fac Gar Fac Gar Distress Signals 16 | . 1 . . . . . 1 4 . . . . . 1 2 . 2 . . . . . . . 5 . Communications Jammed 10 | . . . . . . . . . . . . . . . . . . . . . . . . . 10 . Distress Signals 10 | . . . . . . . . . . . . . . . . . . . . . . . . . 10 . Times Spotted 385 | . 17 7 13 13 . 1 23 40 6 2 . 2 13 29 15 18 28 5 5 13 . 23 8 23 73 8 Peak Tracking Total 16 | . 4 2 3 16 . 1 4 9 2 1 . 1 8 8 5 2 5 10 2 7 . 4 4 4 13 7 Tactical Retreats 12 | . . 1 . . . . . . . 1 . . . . . . . . . 3 . 2 . 2 3 . Traps | -11 -10 -10 -9 -9 -9 -8 -8 -7 -7 -7 -7 -6 -6 -6 -6 -6 -6 -5 -5 -5 -5 -4 -4 -4 -4 -4 ------- Run | Jun Mat Min Mat Min Exi Min Mat Fac Low Low Zio Pro Fac Ext Cet Arc Hub Fac Upp Upp Zhi Pro Fac Gar Fac Gar Traps Triggered 8 | . 1 . . . . . . 1 . . . . 1 1 . . . . . . . . . 1 2 1 Indirectly . | . . . . . . . . . . . . . . . . . . . . . . . . . . . Trap Hack Attempts . | . . . . . . . . . . . . . . . . . . . . . . . . . . . Triggered . | . . . . . . . . . . . . . . . . . . . . . . . . . . . Disarmed . | . . . . . . . . . . . . . . . . . . . . . . . . . . . Reprogrammed . | . . . . . . . . . . . . . . . . . . . . . . . . . . . Reused . | . . . . . . . . . . . . . . . . . . . . . . . . . . . Traps Extracted . | . . . . . . . . . . . . . . . . . . . . . . . . . . . Installed . | . . . . . . . . . . . . . . . . . . . . . . . . . . . Triggered 2 | . . 1 . . . . . . . . . . . . . . . . . 1 . . . . . . Machines | -11 -10 -10 -9 -9 -9 -8 -8 -7 -7 -7 -7 -6 -6 -6 -6 -6 -6 -5 -5 -5 -5 -4 -4 -4 -4 -4 ---------- Run | Jun Mat Min Mat Min Exi Min Mat Fac Low Low Zio Pro Fac Ext Cet Arc Hub Fac Upp Upp Zhi Pro Fac Gar Fac Gar Machines Disabled 48 | . 2 . 2 . . . 1 2 1 . . . 3 1 2 4 11 . . . 1 . 5 7 6 . Max in Single Turn 5 | . 1 . 1 . . . 1 1 1 . . . 3 1 1 1 5 . . . 1 . 5 1 4 . Garrison Access 2 | . . . . . . . . . . . . . . . . . 1 . . . . . . . 1 . Garrison Relay 3 | . . . . . . . . . . . . . . . . . . . . . . . . 3 . . Network Hub 1 | . . . . . . . . . . . . . . . . . 1 . . . . . . . . . Machines Repaired . | . . . . . . . . . . . . . . . . . . . . . . . . . . . Machines Sabotaged . | . . . . . . . . . . . . . . . . . . . . . . . . . . . Overloaded Fab Kills . | . . . . . . . . . . . . . . . . . . . . . . . . . . . Hacking | -11 -10 -10 -9 -9 -9 -8 -8 -7 -7 -7 -7 -6 -6 -6 -6 -6 -6 -5 -5 -5 -5 -4 -4 -4 -4 -4 --------- Run | Jun Mat Min Mat Min Exi Min Mat Fac Low Low Zio Pro Fac Ext Cet Arc Hub Fac Upp Upp Zhi Pro Fac Gar Fac Gar Machines Accessed 70 | . 6 . 4 . 1 . 3 5 . . . 1 5 12 1 1 5 4 2 . 5 1 3 2 9 . Terminals 45 | . 4 . 3 . . . 3 3 . . . 1 4 12 1 . 5 1 . . . 1 . 2 5 . Fabricators 4 | . . . . . . . . 1 . . . . . . . . . 2 . . . . 1 . . . Repair Stations 4 | . 1 . . . . . . . . . . . 1 . . . . 1 . . . . 1 . . . Recycling Units 3 | . 1 . . . . . . 1 . . . . . . . . . . . . . . . . 1 . Scanalyzers 2 | . . . 1 . . . . . . . . . . . . . . . . . . . . . 1 . Garrison Access 3 | . . . . . . . . . . . . . . . . . . . . . . . 1 . 2 . Total Hacks 202 | . 9 . 13 . 3 . 8 10 . . . 1 13 24 3 1 14 12 9 . 18 2 9 8 45 . Successful 112 | . 6 . 7 . 3 . 3 4 . . . 1 4 10 . 1 7 6 9 . 18 2 8 1 22 . Failed 89 | . 3 . 6 . . . 5 6 . . . . 9 14 3 . 7 6 . . . . 1 7 22 . Catastrophic 22 | . 1 . 1 . . . 1 2 . . . . 1 3 1 . . 3 . . . . 1 2 6 . Database Lockouts 1 | . . . . . . . . . . . . . . . . . . . . . . . . . 1 . Manual 60 | . 3 . 1 . . . . 4 . . . . 6 5 1 . 5 . . . . . 3 4 28 . Terminals 125 | . 7 . 9 . . . 8 6 . . . 1 11 24 3 . 14 5 . . . 2 . 8 27 . Fabricators 9 | . . . . . . . . 2 . . . . . . . . . 2 . . . . 5 . . . Repair Stations 11 | . 1 . . . . . . . . . . . 2 . . . . 5 . . . . 3 . . . Recycling Units 11 | . 1 . . . . . . 2 . . . . . . . . . . . . . . . . 8 . Scanalyzers 9 | . . . 4 . . . . . . . . . . . . . . . . . . . . . 5 . Garrison Access 6 | . . . . . . . . . . . . . . . . . . . . . . . 1 . 5 . Terminal Hacks 72 | . 3 . 3 . 3 . 3 2 . . . 1 3 8 . 1 5 1 9 . 18 2 . 1 9 . Record 21 | . . . . . 3 . . . . . . 1 . . . 1 . . 8 . 6 2 . . . . Part Schematic 5 | . . . . . . . . . . . . . . 1 . . . . . . 4 . . . . . Robot Schematic 1 | . . . . . . . . 1 . . . . . . . . . . . . . . . . . . Robot Analysis 6 | . . . 1 . . . . . . . . . . . . . . . . . 4 . . . 1 . Prototype ID Bank 8 | . . . . . . . 1 . . . . . . 2 . . . . . . 4 . . . 1 . Open Door 6 | . . . . . . . . . . . . . 1 4 . . . . 1 . . . . . . . Branch Access Points 2 | . 1 . . . . . . . . . . . . . . . . . . . . . . . 1 . Emergency Access Points 2 | . . . . . . . . . . . . . . . . . 1 . . . . . . 1 . . Terminal Index 1 | . . . . . . . . . . . . . 1 . . . . . . . . . . . . . Unreport Threat 3 | . . . . . . . . . . . . . . . . . 1 . . . . . . . 2 . Locate Traps 7 | . 1 . 1 . . . . 1 . . . . 1 1 . . 1 . . . . . . . 1 . Maintenance Status 1 | . . . . . . . . . . . . . . . . . . . . . . . . . 1 . Patrol Status 1 | . . . . . . . . . . . . . . . . . . . . . . . . . 1 . Hauler Manifests 2 | . . . 1 . . . 1 . . . . . . . . . . . . . . . . . . . Registered Components 3 | . 1 . . . . . 1 . . . . . . . . . 1 . . . . . . . . . Zone Layout 3 | . . . . . . . . . . . . . . . . . 1 1 . . . . . . 1 . Fabricator Hacks 3 | . . . . . . . . . . . . . . . . . . 1 . . . . 2 . . . Network Status 2 | . . . . . . . . . . . . . . . . . . 1 . . . . 1 . . . Build 1 | . . . . . . . . . . . . . . . . . . . . . . . 1 . . . Repair Station Hacks 7 | . 1 . . . . . . . . . . . . . . . . 4 . . . . 2 . . . Scan Component 4 | . 1 . . . . . . . . . . . . . . . . 2 . . . . 1 . . . Repair 3 | . . . . . . . . . . . . . . . . . . 2 . . . . 1 . . . Recycling Unit Hacks 1 | . . . . . . . . . . . . . . . . . . . . . . . . . 1 . Retrieve Components 1 | . . . . . . . . . . . . . . . . . . . . . . . . . 1 . Scanalyzer 7 | . . . 4 . . . . . . . . . . . . . . . . . . . . . 3 . Insert Component 4 | . . . 2 . . . . . . . . . . . . . . . . . . . . . 2 . Analyze 3 | . . . 2 . . . . . . . . . . . . . . . . . . . . . 1 . Garrison Access Hacks 3 | . . . . . . . . . . . . . . . . . . . . . . . 1 . 2 . Unlock Access 2 | . . . . . . . . . . . . . . . . . . . . . . . 1 . 1 . Seal Access 1 | . . . . . . . . . . . . . . . . . . . . . . . . . 1 . Unauthorized Hacks 19 | . 2 . . . . . . 2 . . . . 1 2 . . 2 . . . . . 3 . 7 . Terminals 10 | . 1 . . . . . . 1 . . . . 1 2 . . 2 . . . . . . . 3 . Assimilate 1 | . . . . . . . . . . . . . . . . . . . . . . . . . 1 . Botnet 8 | . 1 . . . . . . 1 . . . . 1 2 . . 2 . . . . . . . 1 . Operators 1 | . . . . . . . . . . . . . . . . . . . . . . . . . 1 . Fabricators 3 | . . . . . . . . . . . . . . . . . . . . . . . 3 . . . Report 1 | . . . . . . . . . . . . . . . . . . . . . . . 1 . . . Liberate 1 | . . . . . . . . . . . . . . . . . . . . . . . 1 . . . Haulers 1 | . . . . . . . . . . . . . . . . . . . . . . . 1 . . . Repair Stations . | . . . . . . . . . . . . . . . . . . . . . . . . . . . Recycling Units 6 | . 1 . . . . . . 1 . . . . . . . . . . . . . . . . 4 . Monitor 1 | . . . . . . . . . . . . . . . . . . . . . . . . . 1 . Reject 1 | . . . . . . . . . . . . . . . . . . . . . . . . . 1 . Recyclers 2 | . . . . . . . . 1 . . . . . . . . . . . . . . . . 1 . Mask 1 | . . . . . . . . . . . . . . . . . . . . . . . . . 1 . Tunnel 1 | . 1 . . . . . . . . . . . . . . . . . . . . . . . . . Scanalyzers . | . . . . . . . . . . . . . . . . . . . . . . . . . . . Garrison Access . | . . . . . . . . . . . . . . . . . . . . . . . . . . . Data Cores Recovered 1 | . . . . . . . . . . . . . . . . . 1 . . . . . . . . . Used . | . . . . . . . . . . . . . . . . . . . . . . . . . . . Hacking Detections 48 | . 4 . 4 . . . 3 5 . . . . 5 10 1 . 5 2 . . . 1 1 2 5 . Full Trace Events 6 | . . . 1 . . . 1 . . . . . 2 1 . . . . . . . . . 1 . . Feedback Events . | . . . . . . . . . . . . . . . . . . . . . . . . . . . Feedback Blocked . | . . . . . . . . . . . . . . . . . . . . . . . . . . . Robot Schematics Acquired 5 | . . . . . . . . 1 . . 4 . . . . . . . . . . . . . . . Robots Built 1 | . . . . . . . . . . . . . . . . . . . . . . . 1 . . . Authchips . | . . . . . . . . . . . . . . . . . . . . . . . . . . . Time 81 | . . . . . . . . . . . . . . . . . . . . . . . 81 . . . Total Robot Build Rating 1 | . . . . . . . . . . . . . . . . . . . . . . . 1 . . . Part Schematics Acquired 23 | . . . 2 . . . . . . . 15 . . 1 . . . . . . 4 . . . 1 . Parts Built . | . . . . . . . . . . . . . . . . . . . . . . . . . . . Authchips . | . . . . . . . . . . . . . . . . . . . . . . . . . . . Time . | . . . . . . . . . . . . . . . . . . . . . . . . . . . Total Part Build Rating . | . . . . . . . . . . . . . . . . . . . . . . . . . . . Parts Repaired 3 | . . . . . . . . . . . . . . . . . . 2 . . . . 1 . . . Time 261 | . . . . . . . . . . . . . . . . . . 207 . . . . 54 . . . Parts Recycled . | . . . . . . . . . . . . . . . . . . . . . . . . . . . Recycled Matter . | . . . . . . . . . . . . . . . . . . . . . . . . . . . Retrieved Matter . | . . . . . . . . . . . . . . . . . . . . . . . . . . . Retrieved Components 2 | . . . . . . . . . . . . . . . . . . . . . . . . . 2 . Parts Scanalyzed 3 | . . . 2 . . . . . . . . . . . . . . . . . . . . . 1 . Part Schematics Acquired 3 | . . . 2 . . . . . . . . . . . . . . . . . . . . . 1 . Parts Damaged . | . . . . . . . . . . . . . . . . . . . . . . . . . . . Bothacking | -11 -10 -10 -9 -9 -9 -8 -8 -7 -7 -7 -7 -6 -6 -6 -6 -6 -6 -5 -5 -5 -5 -4 -4 -4 -4 -4 ------------ Run | Jun Mat Min Mat Min Exi Min Mat Fac Low Low Zio Pro Fac Ext Cet Arc Hub Fac Upp Upp Zhi Pro Fac Gar Fac Gar Used RIF Installer . | . . . . . . . . . . . . . . . . . . . . . . . . . . . Robots Hacked . | . . . . . . . . . . . . . . . . . . . . . . . . . . . Non-combat . | . . . . . . . . . . . . . . . . . . . . . . . . . . . Combat . | . . . . . . . . . . . . . . . . . . . . . . . . . . . Robot Hacks Applied . | . . . . . . . . . . . . . . . . . . . . . . . . . . . Relay Couplers Released 18 | . . . . . . . . . . . . . . . . . 2 . . . . . . 15 1 . Machine Destruction 18 | . . . . . . . . . . . . . . . . . 2 . . . . . . 15 1 . Fabnet Peak Effective % . | . . . . . . . . . . . . . . . . . . . . . . . . . . . Robots Rewired 6 | . . . . . . . . . . . . . . 4 . . . . . 2 . . . . . . Allies Hacked . | . . . . . . . . . . . . . . . . . . . . . . . . . . . Hacks Repelled . | . . . . . . . . . . . . . . . . . . . . . . . . . . . Allies | -11 -10 -10 -9 -9 -9 -8 -8 -7 -7 -7 -7 -6 -6 -6 -6 -6 -6 -5 -5 -5 -5 -4 -4 -4 -4 -4 -------- Run | Jun Mat Min Mat Min Exi Min Mat Fac Low Low Zio Pro Fac Ext Cet Arc Hub Fac Upp Upp Zhi Pro Fac Gar Fac Gar Total Allies 21 | . . . . 3 . . . . . . . . . 9 5 . . . . 2 . . 1 . 1 . Largest Group 9 | . . . . 3 3 3 2 . . . . . . 7 9 7 6 1 . 2 2 2 1 . 1 . Highest-Rated Group 684 | . . . . 40 40 40 32 . . . . . . 325 684 664 490 96 . 59 59 59 6 . 26 . Highest-Rated Ally 159 | . . . . 16 16 16 16 . . . . . . 159 159 159 96 96 . 30 30 30 6 . 26 . Total Orders . | . . . . . . . . . . . . . . . . . . . . . . . . . . . Ally Attacks 309 | . . . . . . 7 18 . . . . . . 56 89 36 82 5 . . . 16 . . . . Total Damage 9180 | . . . . . . 82 206 . . . . . . 1279 2506 1438 3377 141 . . . 151 . . . . Kills 63 | . . . . . . 1 3 . . . . . . 9 19 4 25 1 . . . 1 . . . . Allies Corrupted 1 | . . . . . . . . . . . . . . . 1 . . . . . . . . . . . Allies Melted . | . . . . . . . . . . . . . . . . . . . . . . . . . . . Intel | -11 -10 -10 -9 -9 -9 -8 -8 -7 -7 -7 -7 -6 -6 -6 -6 -6 -6 -5 -5 -5 -5 -4 -4 -4 -4 -4 ------- Run | Jun Mat Min Mat Min Exi Min Mat Fac Low Low Zio Pro Fac Ext Cet Arc Hub Fac Upp Upp Zhi Pro Fac Gar Fac Gar Robot Analysis Total 6 | . . . 1 . . . . . . . . . . . . . . . . . 4 . . . 1 . Derelict Logs Recovered 12 | . . 1 . 2 . . . . . 1 2 1 . . . . . . 2 2 . 1 . . . . Drone Launches . | . . . . . . . . . . . . . . . . . . . . . . . . . . . Drone Recoveries . | . . . . . . . . . . . . . . . . . . . . . . . . . . . Exploration | -11 -10 -10 -9 -9 -9 -8 -8 -7 -7 -7 -7 -6 -6 -6 -6 -6 -6 -5 -5 -5 -5 -4 -4 -4 -4 -4 ------------- Run | Jun Mat Min Mat Min Exi Min Mat Fac Low Low Zio Pro Fac Ext Cet Arc Hub Fac Upp Upp Zhi Pro Fac Gar Fac Gar Turns Passed 20795 | 200 797 592 895 738 569 300 1093 2032 453 455 1339 483 561 1712 324 537 835 393 952 832 311 1085 642 1015 1506 144 Spaces Moved 11616 | 117 489 375 443 427 351 175 543 1064 367 306 1072 351 354 896 166 246 470 164 553 428 174 504 255 497 757 72 Core 4 | 4 . . . . . . . . . . . . . . . . . . . . . . . . . . Treads 6279 | . . . 443 427 351 175 524 931 1 . . . . 9 137 246 470 164 553 428 174 504 177 360 205 . Legs 1816 | 113 489 375 . . . . . . . . . . . . . . . . . . . . 78 137 552 72 Wheels 3517 | . . . . . . . 19 133 366 306 1072 351 354 887 29 . . . . . . . . . . . Hover . | . . . . . . . . . . . . . . . . . . . . . . . . . . . Flight . | . . . . . . . . . . . . . . . . . . . . . . . . . . . Fastest Speed 50 | 50 120 120 160 160 160 160 140 101 86 110 95 125 110 130 115 160 160 160 160 160 160 160 120 120 120 120 Average Speed 148 | 117 123 136 160 160 160 160 161 157 105 141 121 125 131 157 154 160 160 160 160 160 160 168 203 152 139 120 Slowest Speed 320 | 120 190 190 160 160 160 160 245 240 320 155 125 125 170 320 160 160 160 160 160 160 160 240 240 190 190 190 Overloaded Moves . | . . . . . . . . . . . . . . . . . . . . . . . . . . . Propulsion Burnouts . | . . . . . . . . . . . . . . . . . . . . . . . . . . . Robots Hopped . | . . . . . . . . . . . . . . . . . . . . . . . . . . . Cave-ins Triggered . | . . . . . . . . . . . . . . . . . . . . . . . . . . . Teleports 1 | . . . . . . . . . . . . . . . . . . . . . . . . . 1 . Exploration Rate (%) 51 | 4 79 59 38 79 62 41 30 27 62 55 89 67 14 86 65 89 65 5 80 67 60 70 8 53 23 10 Regions Visited 26 Branch Regions 16 Pre-discovered Areas 7 | . 1 1 . . 1 . . . . . . . . . . . . . 1 . 3 . . . . . Known Exits Taken 6 | . 1 . . . . . 1 . . . . . . . . . . 1 . . . 1 1 . 1 . Unknown Exits Taken 19 | 1 . 1 1 1 1 1 . 1 1 1 1 1 1 1 1 1 1 . 1 1 1 . . . . . Scrap Searched 14 | . . 1 . 1 . 1 . . 2 2 2 1 . . . . . . 2 2 . . . . . . Spaces Dug 10 | . . . . . . . . . . . . . 2 . . . . 7 . . . . . . 1 . Terrain Destroyed 757 | . 26 59 10 37 . . 19 30 9 4 . 40 84 49 . 27 173 10 15 14 1 45 69 12 24 . Melee 2 | . . . . . . . . . . . . . 2 . . . . . . . . . . . . . Projectile 168 | . . . 2 2 . . 1 2 . 4 . 5 6 5 . 27 12 10 15 14 1 25 9 12 16 . AOE 586 | . 26 59 8 35 . . 18 27 9 . . 35 76 44 . . 161 . . . . 20 60 . 8 . Terrain Rammed . | . . . . . . . . . . . . . . . . . . . . . . . . . . . Walls Destroyed . | . . . . . . . . . . . . . . . . . . . . . . . . . . . Machines Disabled . | . . . . . . . . . . . . . . . . . . . . . . . . . . . Actions | -11 -10 -10 -9 -9 -9 -8 -8 -7 -7 -7 -7 -6 -6 -6 -6 -6 -6 -5 -5 -5 -5 -4 -4 -4 -4 -4 --------- Run | Jun Mat Min Mat Min Exi Min Mat Fac Low Low Zio Pro Fac Ext Cet Arc Hub Fac Upp Upp Zhi Pro Fac Gar Fac Gar Total 13842 | 147 600 425 580 459 359 191 676 1281 403 318 1102 368 407 1127 223 328 516 284 592 527 205 650 333 628 997 116 Wait 644 | 1 20 13 20 11 1 9 26 42 3 2 1 3 1 60 7 37 27 111 19 27 5 91 21 19 44 23 Move 11591 | 116 488 374 442 426 350 174 542 1063 366 305 1071 350 353 895 165 245 469 163 552 427 173 503 254 496 757 72 Hop . | . . . . . . . . . . . . . . . . . . . . . . . . . . . Pick Up 172 | 8 7 2 21 3 . 1 13 24 6 2 2 . 4 16 9 6 . 2 3 1 4 4 7 9 18 . Fast Attach 146 | 7 1 3 16 . 3 . 6 9 3 1 8 . 9 12 9 2 . 2 . 2 8 3 11 8 19 4 Attach 83 | . . . 3 2 . . 6 11 5 1 1 . 2 11 1 . . 2 2 . . 2 7 5 15 7 Detach 13 | . . . 1 . . . . 1 . 1 . . . 3 2 . . . . . . . 2 2 1 . Swap 133 | 1 17 4 12 2 1 3 12 17 2 . 6 . 6 13 4 3 2 . . . 1 2 2 9 13 1 Drop 269 | . 20 4 33 1 4 2 19 30 . 1 12 . 10 33 19 7 2 . 3 3 12 3 10 18 23 . Fire 659 | 14 47 21 31 13 . 2 52 78 18 5 . 15 20 37 7 26 15 4 13 20 2 42 19 62 96 . Melee 10 | . . . . . . . . . . . 1 . 2 . . . . . . . . . . . . 7 Ram 3 | . . . . . . . . 3 . . . . . . . . . . . . . . . . . . Kick 15 | . . 4 . . . . . . . . . . . . . . . . . . . . . . 11 . Crush 8 | . . . 1 1 . . . 3 . . . . . . . 2 1 . . . . . . . . . Escape Stasis 9 | . . . . . . . . . . . . . . 7 . . . . . . . . . . . 2 Rewire 87 | . . . . . . . . . . . . . . 40 . . . . . 47 . . . . . . Trap . | . . . . . . . . . . . . . . . . . . . . . . . . . . . Miscellaneous . | . . . . . . . . . . . . . . . . . . . . . . . . . . . Route ------- -11/Junkyard -10/Materials (discovered 3 exits: *Mat / *Min x2) -10/Mines -9/Materials -9/Mines (discovered 2 exits: *Mat / *Exi) -9/Exiles (discovered 2 exits: [*Min x2]) -8/Mines -8/Materials (discovered 2 exits: *Fac x2) -7/Factory (discovered 2 exits: [*Low x2]) -7/Lower Caves -7/Lower Caves (discovered 2 exits: *Fac / [*Zio]) -7/Zion (discovered 2 exits: Dee / *Pro) -6/Proximity Caves -6/Factory -6/Extension (discovered 2 exits: *Fac / *Cet) -6/Cetus (discovered 2 exits: *Fac / *Arc) -6/Archives (discovered 3 exits: *Fac / *Hub x2) -6/Hub_04(d) (discovered 3 exits: *Fac x3) -5/Factory -5/Upper Caves -5/Upper Caves (discovered 2 exits: *Fac / *Zhi) -5/Zhirov -4/Proximity Caves -4/Factory (discovered 3 exits: Res x2 / Gar) -4/Garrison (discovered 3 exits: *Fac x3) -4/Factory (discovered 3 exits: Upp x2 / Gar) -4/Garrison History --------- Turn | Location | Event 2 | -11/Junkyard | Discovered new exit (range 16) 201 | -11/Junkyard | Entered Materials 302 | -10/Materials | Build established: Mutant 346 | -10/Materials | Discovered new exit (range 6) 419 | -10/Materials | Identified exit to Mines 621 | -10/Materials | Discovered new exit (range 15) 998 | -10/Materials | Entered Mines 1001 | -10/Mines | Met a Derelict bent on vengeance 1377 | -10/Mines | Core integrity fell below 50% 1421 | -10/Mines | Discovered new exit (range 7) 1433 | -10/Mines | Learned location of Storage (-7) 1474 | -10/Mines | Build established: Scavenger-Mutant 1590 | -10/Mines | Entered Materials 1590 | -9/Materials | Evolved 2 slots: Utility x1, Weapon x1 1722 | -9/Materials | Lost 3 parts (1p1u1w) 1926 | -9/Materials | Discovered new exit (range 9) 2270 | -9/Materials | Build established: Gunner 2485 | -9/Materials | Entered Mines 2486 | -9/Mines | Assembled infested the area 2508 | -9/Mines | Met 8R-AWN 2523 | -9/Mines | Destroyed 9 combat bots 2603 | -9/Mines | Discovered new exit (range 5) 2723 | -9/Mines | Assisted by bots powering up and referring to "LRC-V3" 2841 | -9/Mines | Learned Materials garrison access intel 2870 | -9/Mines | Learned location of 2 exits from Materials 3060 | -9/Mines | Discovered new exit (range 16) 3079 | -9/Mines | Received a Rocket Launcher from a helpful Derelict 3223 | -9/Mines | Entered Exiles 3223 | -9/Exiles | Accompanied by 3 allies 3249 | -9/Exiles | Discovered new exit (range 15) 3268 | -9/Exiles | Welcomed by 8R-AWN 3291 | -9/Exiles | Met EX-HEX 3374 | -9/Exiles | Met EX-DEC 3402 | -9/Exiles | Learned location of Zion (-7) 3500 | -9/Exiles | Discovered new exit (range 14) 3540 | -9/Exiles | Build established: Mutant 3644 | -9/Exiles | Met EX-BIN 3689 | -9/Exiles | Learned about 8R-AWN's background 3792 | -9/Exiles | Entered Mines 3792 | -8/Mines | Accompanied by 3 allies 4054 | -8/Mines | Discovered new exit (range 6) 4058 | -8/Mines | Build established: Gunner 4092 | -8/Mines | Entered Materials 4092 | -8/Materials | Accompanied by 2 allies 4092 | -8/Materials | Evolved 2 slots: Propulsion x1, Utility x1 4093 | -8/Materials | Identified exit to Factory 4493 | -8/Materials | Build established: Scavenger-Gunner 4769 | -8/Materials | Lost 3 parts (1p1n1u) 5185 | -8/Materials | Entered Factory 5185 | -7/Factory | Evolved 2 slots: Propulsion x1, Utility x1 6001 | -7/Factory | Build established: Gunner 6214 | -7/Factory | Discovered new exit (range 7) 6544 | -7/Factory | Build established: Scavenger-Tank 6859 | -7/Factory | Cargo convoy interrupted 6955 | -7/Factory | Destroyed 12 combat bots 6964 | -7/Factory | Lost 10 parts (1p3n4u2w) 7069 | -7/Factory | Discovered new exit (range 4) 7190 | -7/Factory | Lost 3 parts (2u1w) 7217 | -7/Factory | Entered Lower Caves 7545 | -7/Lower Caves | Build established: Scavenger-Mutant 7599 | -7/Lower Caves | Discovered new exit (range 5) 7600 | -7/Lower Caves | Attracted the attention of an 0b10 checkpoint 7640 | -7/Lower Caves | Lost 3 parts (2n1w) 7670 | -7/Lower Caves | Entered another Lower Caves area 7698 | -7/Lower Caves | Discovered new exit (range 11) 7969 | -7/Lower Caves | Build established: Scavenger-Gunner 8003 | -7/Lower Caves | Spotted B-75 Beast 8112 | -7/Lower Caves | Discovered new exit (range 11) 8125 | -7/Lower Caves | Entered Zion 8158 | -7/Zion | System corruption cleaned by Quarantine Array 8227 | -7/Zion | Acquired unknown access codes intercepted by a Zionite 8261 | -7/Zion | Discovered new exit (range 14) 8314 | -7/Zion | Visited the Megawrench Repair Shop 8322 | -7/Zion | Megawrench repaired 12 parts 8435 | -7/Zion | Build established: Scavenger-Mutant 8498 | -7/Zion | Identified exit to Deep Caves 8543 | -7/Zion | Found Prototype Energy Gun 8664 | -7/Zion | Found Prototype Launcher 8664 | -7/Zion | Identified Gui. Missile Launcher 8904 | -7/Zion | Given A8's code to call for help 9464 | -7/Zion | Entered Proximity Caves 9611 | -6/Proximity Caves | Attracted the attention of an 0b10 checkpoint 9724 | -6/Proximity Caves | Learned Factory security intel 9913 | -6/Proximity Caves | Discovered new exit (range 15) 9947 | -6/Proximity Caves | Entered Factory 9947 | -6/Factory | Evolved 2 slots: Utility x1, Weapon x1 10494 | -6/Factory | Discovered new exit (range 10) 10508 | -6/Factory | Entered Extension 10569 | -6/Extension | Rescued a captive Derelict 10625 | -6/Extension | Build established: Scavenger-Gunner 10674 | -6/Extension | Rescued a captive Derelict 11461 | -6/Extension | Spotted B-75 Beast 11467 | -6/Extension | Identified Storm Laser 11485 | -6/Extension | Destroyed B-75 Beast 11504 | -6/Extension | Spotted B-75 Beast 11533 | -6/Extension | Disrupted transfer network 11584 | -6/Extension | Destroyed B-75 Beast 11788 | -6/Extension | Rescued a captive Derelict 11789 | -6/Extension | Rescued a captive Derelict 11870 | -6/Extension | Rescued A7 12184 | -6/Extension | Discovered new exit (range 10) 12187 | -6/Extension | Discovered new exit (range 6) 12220 | -6/Extension | Entered Cetus 12220 | -6/Cetus | Accompanied by 7 allies (A7) 12225 | -6/Cetus | Acquired a Cetus Manufacturing Module code from A7 12250 | -6/Cetus | Spotted Cetus Guard 12250 | -6/Cetus | Spotted Cetus Guard 12252 | -6/Cetus | Spotted Cetus Guard 12258 | -6/Cetus | Spotted Cetus Guard 12260 | -6/Cetus | Core integrity fell below 50% 12260 | -6/Cetus | Allies destroyed Cetus Guard 12267 | -6/Cetus | Allies destroyed Cetus Guard 12267 | -6/Cetus | Allies destroyed Cetus Guard 12268 | -6/Cetus | Allies destroyed Cetus Guard 12309 | -6/Cetus | P-60 Hacker assimilated allied XY-EB2(l) 12349 | -6/Cetus | Started Cetus Manufacturing Module 12364 | -6/Cetus | Escorted A7 to Cetus Mainframe 12374 | -6/Cetus | Manufactured an Enhanced Grunt 12383 | -6/Cetus | Discovered new exit (range 15) 12399 | -6/Cetus | Manufactured an Enhanced Grunt 12419 | -6/Cetus | Spotted Cetus Guard 12419 | -6/Cetus | Spotted Cetus Guard 12421 | -6/Cetus | Spotted Cetus Guard 12422 | -6/Cetus | Spotted Cetus Guard 12423 | -6/Cetus | Allies destroyed Cetus Guard 12424 | -6/Cetus | Manufactured an Enhanced Grunt 12433 | -6/Cetus | Discovered new exit (range 16) 12435 | -6/Cetus | Destroyed Cetus Guard 12445 | -6/Cetus | Destroyed Cetus Guard 12449 | -6/Cetus | Manufactured an Enhanced Grunt 12453 | -6/Cetus | Met Revision 17 12474 | -6/Cetus | Manufactured an Enhanced Grunt 12544 | -6/Cetus | Entered Archives 12544 | -6/Archives | Accompanied by 7 allies (A7) 12549 | -6/Archives | Received a hacking code to weaken MAIN.C 12630 | -6/Archives | Discovered new exit (range 15) 12648 | -6/Archives | Discovered new exit (range 16) 12921 | -6/Archives | Discovered new exit (range 16) 13023 | -6/Archives | Unable to access archive contents 13081 | -6/Archives | Entered Hub_04(d) 13081 | -6/Hub_04(d) | Accompanied by 6 allies 13109 | -6/Hub_04(d) | Discovered new exit (range 15) 13677 | -6/Hub_04(d) | Discovered new exit (range 16) 13831 | -6/Hub_04(d) | Discovered new exit (range 8) 13849 | -6/Hub_04(d) | Spotted B-75 Beast 13859 | -6/Hub_04(d) | Destroyed B-75 Beast 13907 | -6/Hub_04(d) | Network Hub disabled 13916 | -6/Hub_04(d) | Entered Factory 13916 | -5/Factory | Accompanied by 1 ally 13916 | -5/Factory | Evolved 2 slots: Power x1, Utility x1 13917 | -5/Factory | Identified exit to Upper Caves 14132 | -5/Factory | Repaired Adv. Variable Charge Gun 14216 | -5/Factory | First assault squad dispatched 14242 | -5/Factory | Repaired Centrium Heavy Treads 14309 | -5/Factory | Entered Upper Caves 14515 | -5/Upper Caves | Learned location of Armory (-3) 14515 | -5/Upper Caves | Learned Factory stockpile data 14515 | -5/Upper Caves | Learned Research security intel 14618 | -5/Upper Caves | Build established: Scavenger-Tank 14843 | -5/Upper Caves | Learned 4 Factory zone layouts 14984 | -5/Upper Caves | Learned Factory stockpile data 15067 | -5/Upper Caves | Attracted the attention of an 0b10 checkpoint 15093 | -5/Upper Caves | Discovered new exit (range 9) 15261 | -5/Upper Caves | Entered another Upper Caves area 15262 | -5/Upper Caves | Identified exit to Factory 15464 | -5/Upper Caves | Learned Factory stockpile data 15681 | -5/Upper Caves | Attracted the attention of an 0b10 outpost 15732 | -5/Upper Caves | Destroyed 11 combat bots 15919 | -5/Upper Caves | Learned Factory trap positions 16008 | -5/Upper Caves | Discovered new exit (range 8) 16093 | -5/Upper Caves | Entered Zhirov 16093 | -5/Zhirov | Accompanied by 2 allies 16093 | -5/Zhirov | Discovered new exit (range 3) 16122 | -5/Zhirov | Met Zhirov 16151 | -5/Zhirov | Learned location of Quarantine (-2) 16151 | -5/Zhirov | Learned location of Testing (-3) 16151 | -5/Zhirov | Learned location of Command (-1) 16165 | -5/Zhirov | Zhirov requested help retrieving the SGEMP Prototype 16198 | -5/Zhirov | Found Alien Artifact 16198 | -5/Zhirov | Identified Integrated Dissipator 16198 | -5/Zhirov | Installed Integrated Dissipator, increased core heat dissipation (+20) 16224 | -5/Zhirov | Found Alien Artifact 16404 | -5/Zhirov | Entered Proximity Caves 16404 | -4/Proximity Caves | Accompanied by 2 allies 16493 | -4/Proximity Caves | Spotter reported a threat 16546 | -4/Proximity Caves | Spotter reported a threat 17080 | -4/Proximity Caves | Spotted B-86 Titan 17268 | -4/Proximity Caves | Build established: Scavenger-Mutant 17336 | -4/Proximity Caves | Attracted the attention of an 0b10 base 17408 | -4/Proximity Caves | Learned Armory terminal intel 17489 | -4/Proximity Caves | Entered Factory 17489 | -4/Factory | Evolved 2 slots: Utility x2 17490 | -4/Factory | Identified exit to Research 17492 | -4/Factory | Loaded intel: 78 trap records 17615 | -4/Factory | Build established: Scavenger-Tank 17739 | -4/Factory | Search patrols dispatched 17769 | -4/Factory | Fabricated K-01 Serf (x1) 17897 | -4/Factory | Lost 3 parts (1p2u) 18054 | -4/Factory | Repaired Centrium Heavy Treads? 18068 | -4/Factory | Found Quantum Capacitor 18100 | -4/Factory | Spotted B-86 Titan 18130 | -4/Factory | Identified exit to Garrison 18131 | -4/Factory | Entered Garrison 18132 | -4/Garrison | Identified exit to Factory 18151 | -4/Garrison | Build established: Scavenger-Gunner 18176 | -4/Garrison | Triggered checkpoint 18202 | -4/Garrison | Garrison Relay disabled 18258 | -4/Garrison | Spotted B-86 Titan 18338 | -4/Garrison | Destroyed B-86 Titan 18341 | -4/Garrison | Lost 3 parts (1n2w) 18384 | -4/Garrison | Triggered checkpoint 18390 | -4/Garrison | Triggered checkpoint 18463 | -4/Garrison | Heavy support dispatched to Factory 18594 | -4/Garrison | Triggered checkpoint 18639 | -4/Garrison | Garrison Relay disabled 18723 | -4/Garrison | Garrison Relay disabled 18900 | -4/Garrison | Discovered exit to Factory (range 15) 18915 | -4/Garrison | Heavy support dispatched to Factory 19146 | -4/Garrison | Entered Factory 19396 | -4/Factory | First assault squad dispatched 19433 | -4/Factory | Garrison activated, responded to threat 19489 | -4/Factory | Lost 4 parts (2u2w) 19660 | -4/Factory | Lost 3 parts (1p1n1w) 19688 | -4/Factory | System corruption reached 10% 19798 | -4/Factory | Lost 4 parts (1p2u1w) 19840 | -4/Factory | Identified exit to Upper Caves 19887 | -4/Factory | Identified Transdimensional Reconstructor 20221 | -4/Factory | Core integrity fell below 50% 20379 | -4/Factory | Central database locked down 20402 | -4/Factory | Cargo convoy interrupted 20404 | -4/Factory | Spotted Striker 20423 | -4/Factory | Warped through subspace 20452 | -4/Factory | Lost 4 parts (3u1w) 20497 | -4/Factory | Spotted B-86 Titan 20630 | -4/Factory | Assembled infested ambush trap array 20636 | -4/Factory | Identified exit to Garrison 20646 | -4/Factory | Core integrity fell below 20% 20652 | -4/Factory | Entered Garrison 20674 | -4/Garrison | Triggered checkpoint 20676 | -4/Garrison | Lost 13 parts (2p3n4u4w) 20796 | -4/Garrison | Destroyed by H-77 Assassin with High-powered Shotgun Last Messages --------------- 20721_ System corrupted: Energy discharge (-68). 20721_ Acquired Adv. Heat Sink. 20724_ Acquired Plasma Rifle. 20727_ Acquired Flexi-carbon Leg. 20751_ System corrupted: Matter fused (-8). 20777_ System corrupted: Energy discharge (-41). 20781_ Slug penetrates Wall. 20782_ Penetrated by Slug. 20782_ Slug penetrates Wall. 20784_ H-77 Assassin suffers critical hit (Impale). 20784_ H-77 Assassin destroyed. 20785_ Penetrated by Slug. 20785_ Slug penetrates Wall. 20785_ C-30 ARC bursts open, deploying its payload. 20785_ S-27 Virus unfolds itself. 20787_ Acquired 61 matter. 20793_ Penetrated by Slug. 20793_ S-27 Virus destroyed. 20793_ Lgt. Quantum Reactor destroyed. 20796_ Penetrated by Slug. Map ----- +----------------------------------------------------+ | # #?????????????????????????????????????????????? | | # #?????????????????????????????????????????????? | | # #########+##################### #????????????? | | # #????????????? | | # #????????????? | | ########### ######### ##"""#??????????????????? | | ??????????# #???????# #???????????????????????? | | ??????????#####???????# #???????????????????????? | | ??????????????????????# #???????????????????????? | | ??????????????????????# #???????????????????????? | | ??????????????????????# #???????????????????????? | | ??????????????????????# #???????????????????????? | | ??????????????????????# #???????????????????????? | | ??????????????????????# #???????????????????????? | | ??????????????????????# #???????????????????????? | | ??????????????????????# #???????????????????????? | | ??????????????????????# #???????????????????????? | | ??????????????????????# #???????????????????????? | | ??????????????????????# #???????????????????????? | | ??????????????????????# #???????????????????????? | | ??????????????????????# #???????????????????????? | | ??????????????????????# #???????????????????????? | | ??????????????????????# #????????????""?????????? | | ????????????### ##????# ######## s ????????? | | ????????? # *[h= s ????????? | | ????????? ;s!@[s % ????????? | | ????????????????################# ##???????????? | | ?????????????????????????????????????????????????? | | ?????????????????????????????????????????????????? | | ?????????????????????????????????????????????????? | | ?????????????????????????????????????????????????? | | ?????????????????????????????????????????????????? | | ?????????????????????????????????????????????????? | | ?????????????????????????????????????????????????? | | ?????????????????????????????????????????????????? | | ?????????????????????????????????????????????????? | | ?????????????????????????????????????????????????? | | ?????????????????????????????????????????????????? | | ?????????????????????????????????????????????????? | | ?????????????????????????????????????????????????? | | ?????????????????????????????????????????????????? | | ?????????????????????????????????????????????????? | | ?????????????????????????????????????????????????? | | ?????????????????????????????????????????????????? | | ?????????????????????????????????????????????????? | | ?????????????????????????????????????????????????? | | ?????????????????????????????????????????????????? | | ?????????????????????????????????????????????????? | | ?????????????????????????????????????????????????? | | ?????????????????????????????????????????????????? | +----------------------------------------------------+ Best States ------------- Heat Dissipation 120 Energy Generation 39 Energy Capacity 955 Matter Stores 300 Matter Capacity 300 Sight Range 16 Robot Scan Range 16 Terrain Scan Density 10 Jamming Range 12 EM Shielding 4 Armor Coverage 900 Resistance: KI 30 Resistance: TH 10 Core Shielding 30 Weapon Shielding 90 Evasion (%) 55 Targeting Accuracy 8 Launcher Accuracy 20 Target Analysis 6 Core Analysis 6 Recoil Reduction 4 Energy Filtering 50 Offensive Hacking 24 Defensive Hacking 14 Item Schematics ----------------- Aluminum Leg | -9/Materials | Scanalyzed Transport Network Coupler | -9/Materials | Scanalyzed Mak. Shrapnel Gun | -7/Zion | Archive Thermic Laser | -7/Zion | Archive Microactuators | -7/Zion | Archive Lgt. Fission Core | -7/Zion | Archive Hvy. Laser | -7/Zion | Archive Magnetic Acceleration Cannon | -7/Zion | Archive Dynamic Insulation System | -7/Zion | Archive Imp. Thermal Shield | -7/Zion | Archive Hvy. Treads | -7/Zion | Archive Imp. Cooling System | -7/Zion | Archive Thermal Shield | -7/Zion | Archive Imp. Heavy Armor Plating | -7/Zion | Archive Transmission Jammer | -7/Zion | Archive Imp. Carbon-fiber Leg | -7/Zion | Archive EM Disruption Field | -7/Zion | Archive Arm. Medium Treads | -6/Extension | Hacked Assault Drone Bay | -5/Zhirov | Free Exp. Heat Sink | -5/Zhirov | Free Exp. Optical Array | -5/Zhirov | Free Imp. Arc Thrower | -5/Zhirov | Free Imp. Core Shielding | -4/Factory | Scanalyzed Robot Schematics ------------------ A-02 Transporter | -7/Factory | Hacked S-27 Virus | -7/Zion | Archive L-41 Fighter | -7/Zion | Archive T-07 Excavator | -7/Zion | Archive X-82 Rainmaker | -7/Zion | Archive Fabricated ------------ K-01 Serf | x1 | -4/Factory | Preloaded Alien Tech Used ----------------- Integrated Dissipator Transdimensional Reconstructor Achievements -------------- None Challenges ------------ None Game ------ Seed MediumGhostWell Manual? 0 Play Time 03:03:38 Cumulative 311.4 hours Start 2023.03.12 @ 00:49:06 End 2023.03.12 @ 14:14:08 Sessions 3 Manual Loads 0 Difficulty Rogue Special Mode None Game No. 206 Rogue 183 Adventurer 6 Explorer 17 Win Type - Total 24 Types 16/0/4/1/0/1/1/1/0 Lore% 94 Gallery% 93 Achievement% 76 Wizard Run 0 Options --------- ASCII 0 Keyboard 0 Movement Numpad Keybinds 0 Fullscreen 1 Font 12/Fuzzy Map View 83x54 Tactical HUD 1 Map Filters NONE Filters NONE Steam 1 RUN: f5a360f3-94c4-4fdc-a534-bc9ce3a5034f